bitfinex/quotes_BTCUSD_20251015
["timestamp","ask_amount","ask_price","bid_price","bid_amount"]
[1760543560726,0.18063583,110720.0,110710.0,0.18065215]
[1760543560931,0.18063583,110720.0,110700.0,0.27939201]
[1760543561229,0.18063583,110720.0,110710.0,0.18065215]
[1760543561429,0.18063583,110720.0,110690.0,0.189719]
[1760543561661,0.01484924,110710.0,110700.0,0.18066847]
[1760543562063,0.19550139,110710.0,110700.0,0.18066847]
[1760543562303,0.18063583,110720.0,110700.0,0.18066847]
[1760543562514,0.19416414,110710.0,110700.0,0.18066847]
[1760543562714,0.18066947,110700.0,110680.0,0.18962966]
[1760543563055,0.18066947,110700.0,110690.0,0.18068479]
[1760543563214,0.18066947,110700.0,110680.0,0.61931978]
[1760543563537,0.18983283,110700.0,110690.0,0.18068479]
[1760543563765,0.18983283,110700.0,110670.0,0.18067111]
[1760543563766,0.18068479,110690.0,110670.0,0.18067111]
[1760543563878,0.18068479,110690.0,110660.0,0.26141523]
[1760543563879,0.2031828,110680.0,110660.0,0.26141523]
[1760543564121,0.18073377,110660.0,110650.0,0.1896807]
[1760543564507,0.18071744,110670.0,110660.0,0.18073377]
[1760543564834,0.18071744,110670.0,110650.0,0.1896807]
[1760543565247,0.18073377,110660.0,110630.0,0.18073536]
[1760543565475,0.18073377,110660.0,110650.0,0.18075011]
[1760543565665,0.18075011,110650.0,110630.0,0.27946461]
[1760543565864,0.18073377,110660.0,110640.0,0.18076644]
[1760543566098,0.18075011,110650.0,110640.0,0.18076644]
[1760543566484,0.9294815,110660.0,110640.0,0.18076644]
[1760543566697,0.20638372,110660.0,110650.0,0.18075011]
[1760543566900,0.20638372,110660.0,110640.0,0.18076644]
[1760543566901,0.18075011,110650.0,110640.0,0.18076644]
[1760543567303,0.18075011,110650.0,110630.0,0.18077813]
[1760543567509,0.18975331,110670.0,110640.0,0.18076644]
[1760543567723,0.27042389,110660.0,110640.0,0.18076644]
[1760543567955,0.18075011,110650.0,110640.0,0.18076644]
[1760543568554,0.18075011,110650.0,110630.0,0.18981726]
[1760543568816,0.18075011,110650.0,110640.0,0.18076644]
[1760543569200,0.18175011,110650.0,110640.0,0.18076644]
[1760543569621,0.001,110650.0,110640.0,0.18076644]
[1760543570617,0.001,110650.0,110640.0,0.27045656]
[1760543571345,0.1973058,110670.0,110660.0,0.18073377]
[1760543571552,0.1973058,110670.0,110650.0,0.18073571]
[1760543571784,0.20137976,110660.0,110650.0,0.18075011]
[1760543571991,0.19732077,110660.0,110650.0,0.18075011]
[1760543572195,0.21980245,110660.0,110650.0,0.18075011]
[1760543572407,0.18075011,110650.0,110640.0,0.18980476]
[1760543572607,0.18075011,110650.0,110640.0,0.18076644]
[1760543573709,0.18075011,110650.0,110630.0,0.18078278]
[1760543574150,0.18075011,110650.0,110640.0,0.18076644]
[1760543574357,0.18977045,110660.0,110640.0,0.18076644]
[1760543574567,0.20634187,110660.0,110640.0,0.18076644]
[1760543574999,0.18973617,110680.0,110650.0,0.19882512]
[1760543575222,0.18073377,110660.0,110650.0,0.18075011]
[1760543575438,0.18075011,110650.0,110620.0,0.18974772]
[1760543575645,0.18075011,110650.0,110640.0,0.18076644]
[1760543576673,0.18075011,110650.0,110630.0,0.27951153]
[1760543576881,0.18076644,110640.0,110630.0,0.18982191]
[1760543577095,0.18076644,110640.0,110620.0,0.18974772]
[1760543577317,0.18076644,110640.0,110630.0,0.18078278]
[1760543577565,0.18978761,110650.0,110630.0,0.18078278]
[1760543577785,0.18076644,110640.0,110630.0,0.18078278]
[1760543578204,0.18994577,110640.0,110630.0,0.18078278]
[1760543578418,0.26237069,110640.0,110610.0,0.1807859]
[1760543578620,0.26237069,110640.0,110620.0,0.18079913]
[1760543578621,0.02031074,110630.0,110620.0,0.18079913]
[1760543578843,0.18078278,110630.0,110620.0,0.19793401]
[1760543579057,0.18078278,110630.0,110620.0,0.18079913]
[1760543579298,0.16364225,110640.0,110620.0,0.18079902]
[1760543579560,0.19472482,110630.0,110590.0,1.44190799]
[1760543579802,0.18983908,110620.0,110600.0,0.19726374]
[1760543580024,0.18983908,110620.0,110600.0,0.18082871]
[1760543580468,0.18079913,110620.0,110600.0,0.18082871]
[1760543580892,0.18079913,110620.0,110610.0,0.18081547]
[1760543582134,0.27951203,110630.0,110620.0,0.18079913]
[1760543582360,0.01653706,110630.0,110620.0,0.18079913]
[1760543582578,0.00917933,110640.0,110630.0,0.18078278]
[1760543583010,0.01653853,110640.0,110630.0,0.18078278]
[1760543583225,0.01653853,110640.0,110620.0,0.18983908]
[1760543583226,0.19731017,110640.0,110620.0,0.18983908]
[1760543583440,0.18076644,110640.0,110630.0,0.18078278]
[1760543583660,0.01653747,110640.0,110630.0,0.19703514]
[1760543583877,0.00889808,110640.0,110630.0,0.18078278]
[1760543584091,0.19730485,110640.0,110620.0,0.18079079]
[1760543584316,0.18078278,110630.0,110620.0,0.18079688]
[1760543584549,0.18079913,110620.0,110610.0,0.18081547]
[1760543584773,0.18079913,110620.0,110590.0,0.10059899]
[1760543584774,0.18081547,110610.0,110590.0,0.10059899]
[1760543584982,0.18081547,110610.0,110590.0,0.28144656]
[1760543584983,0.0165369,110610.0,110590.0,0.28144656]
[1760543585216,0.20282796,110610.0,110600.0,0.18083182]
[1760543585436,0.19735237,110610.0,110600.0,0.18083182]
[1760543585647,0.18083182,110600.0,110590.0,0.10059899]
[1760543585872,0.18083182,110600.0,110590.0,0.28144716]
[1760543585873,0.0165369,110600.0,110590.0,0.28144716]
[1760543586351,0.12700412,110610.0,110590.0,0.10059899]
[1760543586612,0.18083182,110600.0,110590.0,0.28144483]
[1760543586880,0.0165369,110600.0,110590.0,0.28144483]
[1760543587098,0.18073383,110660.0,110630.0,0.18078278]
[1760543587316,0.0717521,110640.0,110630.0,0.18078278]
[1760543587536,0.0165276,110640.0,110630.0,0.18078278]
[1760543587746,0.02214298,110650.0,110640.0,0.18076644]
[1760543587960,0.0386785,110650.0,110640.0,0.18076644]
[1760543588214,0.0386785,110650.0,110630.0,0.18078278]
[1760543588215,0.21942861,110650.0,110630.0,0.18078278]
[1760543588418,0.08969012,110640.0,110620.0,0.18079847]
[1760543588627,0.01599028,110630.0,110620.0,0.18079847]
[1760543588833,0.01599028,110630.0,110620.0,1.19699537]
[1760543588834,0.01653552,110630.0,110620.0,1.19699537]
[1760543589073,0.02248168,110670.0,110660.0,0.18073377]
[1760543589283,0.09423378,110680.0,110670.0,0.18071744]
[1760543589515,0.03906054,110680.0,110670.0,0.18071744]
[1760543589721,0.03906054,110680.0,110660.0,0.18073377]
[1760543589925,0.21976234,110680.0,110660.0,0.18073377]
[1760543590131,0.18071751,110670.0,110650.0,0.18978761]
[1760543590338,0.19729637,110670.0,110650.0,0.18878761]
[1760543590545,0.19729637,110670.0,110660.0,0.18073377]
[1760543590967,0.20657869,110670.0,110660.0,0.18073377]
[1760543591812,0.20657869,110670.0,110650.0,0.18878761]
[1760543592773,0.18073377,110660.0,110650.0,0.18878761]
[1760543592995,0.01657886,110660.0,110650.0,0.18878761]
[1760543595461,0.01657886,110660.0,110650.0,0.66735935]
[1760543595685,0.01657886,110660.0,110650.0,0.75704947]
[1760543596590,0.18071767,110670.0,110660.0,0.18073377]
[1760543596807,0.19735971,110670.0,110660.0,0.18073377]
[1760543597481,0.18073377,110660.0,110650.0,0.08969012]
[1760543597698,0.19737581,110660.0,110650.0,0.18075011]
[1760543597918,0.18075011,110650.0,110640.0,0.18979469]
[1760543598128,0.19739215,110650.0,110640.0,0.18979469]
[1760543598353,0.19739215,110650.0,110620.0,0.65937087]
[1760543598570,0.20324985,110640.0,110630.0,0.18078226]
[1760543598774,0.19741021,110640.0,110630.0,0.18078226]
[1760543598986,0.21989189,110640.0,110630.0,0.18078226]
[1760543599613,0.21989016,110640.0,110630.0,0.18078226]
[1760543599819,0.01664204,110640.0,110630.0,0.659354]
[1760543600036,0.01664204,110650.0,110640.0,0.18076644]
[1760543600242,0.01663984,110660.0,110650.0,0.18073889]
[1760543600474,0.23270379,110670.0,110650.0,0.65931063]
[1760543600475,0.01664026,110670.0,110650.0,0.65931063]
[1760543600677,0.19735702,110670.0,110660.0,0.18073377]
[1760543600892,0.19735702,110670.0,110650.0,0.65931063]
[1760543601548,0.01663958,110670.0,110660.0,0.18073377]
[1760543601772,0.22266999,110690.0,110670.0,0.18070949]
[1760543601990,0.22266999,110690.0,110680.0,0.18070112]
[1760543601991,0.18971386,110690.0,110680.0,0.18070112]
[1760543602256,0.24578925,110700.0,110680.0,0.65927286]
[1760543602257,0.18073123,110700.0,110680.0,0.65927286]
[1760543602470,0.18068479,110690.0,110680.0,0.65927286]
[1760543602687,0.1899084,110700.0,110680.0,0.18070112]
[1760543602897,0.18068479,110690.0,110660.0,0.27946057]
[1760543603110,0.18168479,110690.0,110670.0,0.08969012]
[1760543603315,0.001,110690.0,110680.0,1.51402688]
[1760543603768,1.51098783,110730.0,110680.0,1.51402688]
[1760543603769,1.53013748,110730.0,110710.0,0.18064388]
[1760543603972,1.34048565,110730.0,110720.0,0.18063583]
[1760543604183,1.52110517,110730.0,110720.0,0.17963583]
[1760543604431,1.50195552,110730.0,110720.0,0.17963583]
[1760543604639,1.321336,110730.0,110720.0,0.17963583]
[1760543604862,1.50195552,110730.0,110720.0,0.17963583]
[1760543605080,1.52108719,110730.0,110710.0,0.18064388]
[1760543605299,1.53773347,110730.0,110710.0,0.270334]
[1760543605517,1.50195552,110730.0,110720.0,0.01455627]
[1760543606188,0.18063583,110720.0,110710.0,0.270334]
[1760543606437,0.18066648,110710.0,110690.0,0.0717521]
[1760543606636,0.19730814,110710.0,110690.0,0.34212686]
[1760543606850,0.01664166,110710.0,110700.0,0.56826186]
[1760543607279,0.18063711,110720.0,110700.0,0.74893033]
[1760543607516,0.18065215,110710.0,110700.0,0.08969012]
[1760543607726,0.18065215,110710.0,110700.0,0.27035859]
[1760543608191,0.18065215,110710.0,110700.0,0.08969012]
[1760543608429,0.18068479,110690.0,110670.0,0.66832187]
[1760543608640,0.18068479,110690.0,110680.0,0.27039124]
[1760543608858,0.18068479,110690.0,110680.0,0.08969012]
[1760543609299,0.18068479,110690.0,110670.0,0.18071744]
[1760543609521,0.18068479,110690.0,110670.0,0.27040756]
[1760543609737,0.18068479,110690.0,110660.0,0.67740069]
[1760543609738,0.18070112,110680.0,110660.0,0.00903668]
[1760543609943,0.18961206,110690.0,110670.0,0.659289]
[1760543610144,0.00992596,110690.0,110680.0,0.1953223]
[1760543610355,0.00992596,110690.0,110680.0,0.74896298]
[1760543611378,0.00992596,110690.0,110680.0,0.27039124]
[1760543611585,0.00992596,110690.0,110680.0,0.74896298]
[1760543614330,1.321336,110730.0,110720.0,1.56546943]
[1760543614535,1.321336,110730.0,110720.0,1.56446943]
[1760543615157,1.321336,110730.0,110720.0,1.60065171]
[1760543616403,1.13810632,110730.0,110720.0,1.60065171]
[1760543616617,0.57308631,110730.0,110720.0,1.71741171]
[1760543616831,0.57308631,110730.0,110720.0,1.72624714]
[1760543617032,0.57308631,110730.0,110720.0,1.72724714]
[1760543617234,0.57308631,110730.0,110720.0,1.61048714]
[1760543617437,0.57308631,110730.0,110720.0,1.72720714]
[1760543618262,0.57308631,110730.0,110720.0,1.61048714]
[1760543618788,0.57308631,110730.0,110720.0,2.01148714]
[1760543619005,0.57308631,110730.0,110720.0,1.09673312]
[1760543619202,0.57308631,110730.0,110720.0,1.57530486]
[1760543619440,0.57308631,110730.0,110720.0,1.61148714]
[1760543620448,0.57308631,110730.0,110720.0,1.72820714]
[1760543620665,0.57308631,110730.0,110720.0,1.61148714]
[1760543621730,0.57308631,110730.0,110720.0,1.1329154]
[1760543621935,0.57308631,110730.0,110720.0,1.09673312]
[1760543622369,0.57308631,110730.0,110720.0,0.27232595]
[1760543622631,0.75370583,110730.0,110720.0,0.002]
[1760543623330,0.75370583,110730.0,110720.0,0.001]
[1760543623548,0.75370583,110730.0,110720.0,0.18163583]
[1760543623756,0.57308631,110730.0,110720.0,0.19209601]
[1760543623967,0.57308631,110730.0,110720.0,0.74989769]
[1760543625545,1e-08,110730.0,110720.0,1.72137171]
[1760543625950,1e-08,110730.0,110720.0,1.66322213]
[1760543626156,1e-08,110730.0,110720.0,2.17994213]
[1760543626857,1e-08,110730.0,110720.0,7.86322213]
[1760543627303,1e-08,110730.0,110720.0,8.00784718]
[1760543627508,0.0717521,110800.0,110790.0,0.65908557]
[1760543627951,0.18050541,110800.0,110790.0,0.65908557]
[1760543628110,0.18050541,110800.0,110780.0,0.180538]
[1760543628273,0.18050541,110800.0,110780.0,0.27022812]
[1760543628917,0.18150541,110800.0,110780.0,0.74879986]
[1760543629129,0.18054695,110780.0,110760.0,0.18955227]
[1760543629292,0.18954778,110790.0,110770.0,0.74881341]
[1760543629498,0.180538,110780.0,110770.0,0.74881616]
[1760543629728,0.18954778,110790.0,110770.0,0.74881616]
[1760543630187,0.18954778,110790.0,110770.0,0.27024442]
[1760543630355,0.180538,110780.0,110770.0,0.74881616]
[1760543631794,0.18954778,110790.0,110770.0,0.74881616]
[1760543631985,0.20614033,110790.0,110770.0,0.74881616]
[1760543632823,0.180538,110780.0,110770.0,0.27024442]
[1760543633028,0.180538,110780.0,110770.0,0.74881616]
[1760543633613,0.1996016,110800.0,110780.0,0.180538]
[1760543633840,0.1805217,110790.0,110780.0,0.47857174]
[1760543634045,0.1805217,110790.0,110780.0,0.65910974]
[1760543634859,0.18150541,110800.0,110780.0,0.65910974]
[1760543635075,0.1980973,110800.0,110780.0,0.65910974]
[1760543635278,0.1810635,110810.0,110790.0,0.198573]
[1760543635455,0.18050541,110800.0,110790.0,0.18052083]
[1760543635672,0.18050541,110800.0,110790.0,0.1805217]
[1760543635968,0.18050541,110800.0,110780.0,0.74879986]
[1760543636324,0.1810635,110810.0,110790.0,0.1805217]
[1760543636545,0.16029574,110820.0,110800.0,0.65907715]
[1760543636752,0.16029574,110820.0,110800.0,0.18050541]
[1760543637065,0.16029574,110820.0,110800.0,0.74876727]
[1760543637066,0.18047283,110820.0,110800.0,0.74876727]
[1760543637271,0.2086438,110840.0,110820.0,0.18046881]
[1760543637472,0.00919861,110830.0,110820.0,0.18047283]
[1760543637645,0.18875305,110830.0,110810.0,0.74775098]
[1760543637850,0.18875305,110830.0,110820.0,0.18047283]
[1760543638053,0.18045655,110830.0,110820.0,0.65804457]
[1760543638276,0.19999557,110850.0,110820.0,0.26916295]
[1760543638461,0.0004,110850.0,110840.0,0.65901201]
[1760543638662,0.0004,110850.0,110840.0,0.27013039]
[1760543639264,0.0004,110850.0,110840.0,0.74870213]
[1760543639729,0.18082399,110850.0,110840.0,0.56826186]
[1760543639933,0.18082399,110850.0,110840.0,0.08969012]
[1760543640780,0.18082399,110850.0,110840.0,0.27013039]
[1760543640984,0.0004,110850.0,110840.0,0.74870213]
[1760543641188,0.18082399,110850.0,110840.0,0.27013039]
[1760543641393,0.18912785,110850.0,110840.0,0.08969012]
[1760543641829,0.18082399,110850.0,110830.0,0.65902829]
[1760543642102,0.0004,110850.0,110840.0,0.76674615]
[1760543642298,0.0004,110850.0,110840.0,1.56727387]
[1760543642512,0.0004,110850.0,110840.0,1.60345615]
[1760543642732,0.0004,110850.0,110840.0,1.72001615]
[1760543643146,0.0004,110850.0,110840.0,1.71997615]
[1760543643354,0.0004,110850.0,110840.0,1.60345615]
[1760543643567,1e-08,110870.0,110850.0,6.35660627]
[1760543643785,1e-08,110870.0,110860.0,1.73798437]
[1760543644013,1e-08,110870.0,110860.0,1.12485186]
[1760543644221,1e-08,110870.0,110860.0,1.6034236]
[1760543644437,1e-08,110870.0,110860.0,6.7202636]
[1760543644648,1e-08,110870.0,110860.0,1.52485186]
[1760543644860,1e-08,110870.0,110860.0,1.04628012]
[1760543645072,1e-08,110870.0,110860.0,1.64173186]
[1760543645288,1e-08,110870.0,110860.0,1.64273186]
[1760543645492,1e-08,110870.0,110860.0,2.0044236]
[1760543645698,1e-08,110870.0,110860.0,2.1212636]
[1760543645944,1e-08,110870.0,110860.0,1.04728012]
[1760543646150,1e-08,110870.0,110860.0,1.52585186]
[1760543646574,1e-08,110870.0,110860.0,1.64273186]
[1760543647009,1e-08,110870.0,110860.0,1.52585186]
[1760543647201,1e-08,110870.0,110860.0,1.64169186]
[1760543647549,1e-08,110870.0,110860.0,2.0044236]
[1760543649035,1e-08,110870.0,110860.0,7.0034236]
[1760543649459,1e-08,110870.0,110860.0,6.92681236]
[1760543649630,1e-08,110870.0,110860.0,6.80989236]
[1760543649829,1e-08,110870.0,110860.0,7.29971003]
[1760543650041,1e-08,110870.0,110860.0,7.18279003]
[1760543650239,1e-08,110870.0,110860.0,6.78379003]
[1760543650440,1e-08,110870.0,110860.0,1.78379003]
[1760543650708,1e-08,110870.0,110860.0,1.74760775]
[1760543650948,1e-08,110870.0,110860.0,1.74660775]
[1760543651166,1e-08,110870.0,110860.0,0.27209784]
[1760543651390,1e-08,110870.0,110860.0,1.34860775]
[1760543651600,1e-08,110870.0,110860.0,1.00660775]
[1760543651773,1e-08,110870.0,110860.0,0.27009784]
[1760543651954,1e-08,110870.0,110860.0,1.00760775]
[1760543653786,1e-08,110870.0,110860.0,1.00660775]
[1760543654212,1e-08,110870.0,110860.0,1.00760775]
[1760543654589,1e-08,110870.0,110860.0,0.27009784]
[1760543654816,1e-08,110870.0,110860.0,1.00660775]
[1760543654997,1e-08,110870.0,110860.0,1.00760775]
[1760543655550,1e-08,110870.0,110860.0,0.27109784]
[1760543655981,1e-08,110870.0,110860.0,0.09069012]
[1760543656234,0.18039145,110870.0,110860.0,0.001]
[1760543656439,0.19894006,110870.0,110860.0,0.001]
[1760543656676,0.18039145,110870.0,110860.0,0.001]
[1760543656885,0.18041801,110860.0,110840.0,0.18945951]
[1760543657090,0.18943839,110860.0,110840.0,0.18044027]
[1760543657846,0.18042399,110850.0,110830.0,0.73650991]
[1760543658061,0.18044027,110840.0,110830.0,0.08969012]
[1760543658265,0.18044027,110840.0,110830.0,0.27014127]
[1760543658446,0.18044027,110840.0,110830.0,0.27014667]
[1760543658650,0.18042399,110850.0,110830.0,0.27014667]
[1760543659072,0.18042399,110850.0,110840.0,0.18044027]
[1760543659307,0.18042399,110850.0,110830.0,0.27014667]
[1760543659848,0.18943839,110860.0,110840.0,0.19848429]
[1760543660062,0.20297698,110850.0,110830.0,0.27014667]
[1760543660265,0.18044027,110840.0,110830.0,0.27014667]
[1760543660475,0.18044027,110840.0,110830.0,0.08969012]
[1760543660681,0.18944518,110850.0,110830.0,0.18045655]
[1760543661119,0.1894281,110860.0,110840.0,0.01804402]
[1760543661297,0.1894281,110860.0,110840.0,0.19848429]
[1760543661503,0.52039145,110870.0,110850.0,0.18042399]
[1760543661699,0.18040772,110860.0,110850.0,0.18042399]
[1760543661929,0.18090849,110860.0,110840.0,1.01566231]
[1760543662143,0.18992887,110860.0,110830.0,0.73650991]
[1760543662384,0.00050077,110860.0,110850.0,0.18042399]
[1760543663024,0.18090849,110860.0,110850.0,0.18042399]
[1760543663660,0.18042399,110850.0,110820.0,0.74553355]
[1760543663875,0.18042399,110850.0,110830.0,0.08969012]
[1760543663876,0.18044027,110840.0,110830.0,0.08969012]
[1760543664093,0.18042399,110850.0,110830.0,0.27014667]
[1760543664344,0.18044027,110840.0,110830.0,0.27014667]
[1760543664769,0.18042399,110850.0,110830.0,0.27014667]
[1760543664972,0.18042539,110850.0,110830.0,0.18045655]
[1760543665198,0.19971001,110840.0,110830.0,0.18045655]
[1760543665331,0.18044027,110840.0,110830.0,0.18045655]
[1760543665526,0.18045655,110830.0,110810.0,0.92619471]
[1760543665728,0.18045655,110830.0,110810.0,0.27820369]
[1760543666143,0.18045655,110830.0,110820.0,0.18047283]
[1760543666369,0.18045655,110830.0,110810.0,1.01588483]
[1760543666710,0.18045655,110830.0,110810.0,0.27820369]
[1760543666925,0.18047283,110820.0,110810.0,0.27820369]
[1760543667139,0.18045655,110830.0,110820.0,0.18047283]
[1760543667359,0.18946228,110840.0,110820.0,0.18047283]
[1760543667581,0.18944658,110850.0,110830.0,0.1985022]
[1760543667810,0.18044027,110840.0,110830.0,0.18045655]
[1760543668039,0.54861163,110860.0,110840.0,0.18044027]
[1760543668268,0.18044027,110840.0,110820.0,0.18949647]
[1760543668486,0.18044027,110840.0,110820.0,1.01686773]
[1760543668733,0.18044027,110840.0,110830.0,0.18045655]
[1760543668939,0.18042399,110850.0,110840.0,0.18044027]
[1760543669391,0.54911519,110860.0,110840.0,0.18044027]
[1760543669610,0.18042399,110850.0,110840.0,0.18044027]
[1760543669824,0.18044027,110840.0,110830.0,0.18947937]
[1760543670047,0.18042399,110850.0,110820.0,0.18949647]
[1760543670265,0.18042399,110850.0,110830.0,0.18045655]
[1760543670486,0.18044027,110840.0,110820.0,0.27918659]
[1760543670725,0.18045655,110830.0,110810.0,0.26026567]
[1760543670960,0.18047416,110820.0,110810.0,0.08969012]
[1760543671192,0.18049538,110810.0,110790.0,0.26125328]
[1760543671389,0.1894978,110820.0,110800.0,0.18050275]
[1760543671605,0.1894978,110820.0,110810.0,0.18048912]
[1760543671810,0.1894978,110820.0,110800.0,0.27921814]
[1760543671811,0.18047432,110820.0,110800.0,0.27921814]
[1760543672070,0.18047432,110820.0,110810.0,0.19853803]
[1760543672281,0.18097509,110820.0,110800.0,0.27921814]
[1760543672487,0.18048912,110810.0,110800.0,0.18953068]
[1760543672883,0.18097509,110820.0,110810.0,0.18048912]
[1760543673493,0.00050077,110820.0,110810.0,0.18048912]
[1760543674663,0.19607054,110820.0,110800.0,0.18953068]
[1760543674874,0.18048912,110810.0,110800.0,0.2792208]
[1760543675076,0.18048912,110810.0,110800.0,0.18050541]
[1760543675494,0.1809736,110820.0,110800.0,0.18050541]
[1760543676101,0.1809736,110820.0,110810.0,0.18048912]
[1760543676244,0.18048912,110810.0,110800.0,0.18050541]
[1760543676665,0.1809736,110820.0,110800.0,0.18050541]
[1760543676937,0.19762423,110820.0,110810.0,0.18048912]
[1760543677139,0.18048912,110810.0,110800.0,0.18050541]
[1760543677340,0.1809736,110820.0,110800.0,0.18050541]
[1760543677550,0.19761728,110820.0,110810.0,0.18048912]
[1760543677965,0.20664092,110820.0,110800.0,0.18050217]
[1760543678191,0.20305026,110810.0,110790.0,0.1805217]
[1760543678452,0.18050541,110800.0,110790.0,0.1805217]
[1760543679065,0.18050541,110800.0,110780.0,0.18053328]
[1760543679379,0.18050541,110800.0,110780.0,0.2702234]
[1760543679504,0.1805217,110790.0,110780.0,0.2702234]
[1760543679736,0.18954778,110790.0,110760.0,0.1805217]
[1760543679960,0.20310577,110780.0,110770.0,0.1805543]
[1760543680218,0.18053852,110780.0,110770.0,0.1805543]
[1760543680423,0.18053852,110780.0,110760.0,0.61025982]
[1760543680620,0.21798017,110800.0,110770.0,0.19502106]
[1760543680825,0.01762724,110790.0,110780.0,0.180538]
[1760543681049,0.18978093,110800.0,110790.0,0.1805217]
[1760543681203,0.00050046,110800.0,110790.0,0.1805217]
[1760543681384,0.20356904,110800.0,110780.0,0.92724604]
[1760543681586,0.1805217,110790.0,110780.0,0.92724604]
[1760543681785,0.1805217,110790.0,110770.0,1.01695327]
[1760543681992,0.1805217,110790.0,110780.0,0.180538]
[1760543682382,0.180538,110780.0,110770.0,1.01695327]
[1760543682580,0.180538,110780.0,110770.0,0.92726315]
[1760543682827,0.180538,110780.0,110770.0,0.18958201]
[1760543682999,0.180538,110780.0,110770.0,0.1805543]
[1760543683201,0.18954778,110790.0,110770.0,0.91823544]
[1760543683403,0.19003114,110800.0,110780.0,0.91821914]
[1760543683645,0.00952573,110800.0,110790.0,0.91820284]
[1760543683848,0.19003114,110800.0,110790.0,0.91820284]
[1760543684054,0.00050046,110800.0,110790.0,0.91820284]
[1760543684278,0.00050046,110800.0,110790.0,1.00789296]
[1760543684633,0.00050046,110800.0,110790.0,0.27021182]
[1760543684846,0.20356904,110800.0,110780.0,0.9192152]
[1760543685054,0.18100587,110800.0,110790.0,0.1805217]
[1760543685250,0.00050046,110800.0,110790.0,0.91820284]
[1760543685585,0.18100587,110800.0,110790.0,0.91820284]
[1760543685733,0.18100587,110800.0,110790.0,0.1805217]
[1760543685947,0.18100587,110800.0,110790.0,0.91820284]
[1760543686912,0.18100587,110800.0,110790.0,0.91920284]
[1760543687293,0.18100587,110800.0,110790.0,0.1815217]
[1760543687501,0.00050046,110800.0,110790.0,0.91920284]
[1760543688074,0.18100587,110800.0,110790.0,0.73768114]
[1760543688530,0.18100587,110800.0,110790.0,0.001]
[1760543688760,0.18100587,110800.0,110790.0,0.73868114]
[1760543688959,0.18100587,110800.0,110790.0,0.73768114]
[1760543689161,0.18100587,110800.0,110790.0,0.91820284]
[1760543689297,0.18100587,110800.0,110790.0,0.91920284]
[1760543689634,0.18100587,110800.0,110790.0,0.1815217]
[1760543689843,0.00050046,110800.0,110790.0,0.82737126]
[1760543689984,0.00050046,110800.0,110790.0,1.00789296]
[1760543691273,0.18100587,110800.0,110790.0,1.00789296]
[1760543691475,0.00050046,110800.0,110790.0,0.91820284]
[1760543691701,0.00050046,110800.0,110790.0,0.91920284]
[1760543692256,0.00050046,110800.0,110790.0,1.00889296]
[1760543693679,0.00050046,110800.0,110790.0,0.27121182]
[1760543693878,0.00050046,110800.0,110790.0,1.00889296]
[1760543695664,0.00050046,110800.0,110790.0,1.00789296]
[1760543695870,0.00050046,110800.0,110790.0,1.00889296]
[1760543696276,0.00050046,110800.0,110790.0,1.7465741]
[1760543696482,0.00050046,110800.0,110790.0,2.23903638]
[1760543696675,0.00050046,110800.0,110790.0,1.50135524]
[1760543696892,0.00050046,110800.0,110790.0,1.38507524]
[1760543697238,0.00050046,110800.0,110790.0,1.50131524]
[1760543697637,0.18045786,110830.0,110820.0,0.18047283]
[1760543697839,0.19711667,110830.0,110820.0,0.73783095]
[1760543698039,0.19711667,110830.0,110820.0,0.91830378]
[1760543698457,0.1805329,110840.0,110830.0,0.18045655]
[1760543698659,0.02499798,110840.0,110830.0,1.00782781]
[1760543699082,0.02499886,110840.0,110830.0,1.00782781]
[1760543699734,0.20543913,110840.0,110830.0,1.00782781]
[1760543700292,0.20543913,110840.0,110830.0,0.08969012]
[1760543700486,0.18045655,110830.0,110820.0,0.00014981]
[1760543700711,0.20545541,110830.0,110820.0,0.73783095]
[1760543702233,0.21446657,110830.0,110820.0,0.73783095]
[1760543702475,0.20545541,110830.0,110820.0,0.73783095]
[1760543702902,0.02499886,110830.0,110820.0,0.91830378]
[1760543703030,0.02499886,110830.0,110820.0,1.0079939]
[1760543704083,0.0166662,110830.0,110820.0,1.0079939]
[1760543704280,0.24025106,110840.0,110830.0,0.18045655]
[1760543704519,0.2485976,110840.0,110830.0,0.91813769]
[1760543704706,0.02503953,110840.0,110830.0,1.00782781]
[1760543705419,0.07522043,110860.0,110830.0,1.34782781]
[1760543705562,0.0514685,110860.0,110850.0,0.91810513]
[1760543705936,0.06817012,110860.0,110850.0,1.00779525]
[1760543706136,0.02505239,110860.0,110850.0,1.00779525]
[1760543706544,0.02505239,110860.0,110850.0,0.08969012]
[1760543706760,0.20546011,110860.0,110830.0,0.18947937]
[1760543706896,0.22942846,110860.0,110840.0,1.00780846]
[1760543707247,0.18042399,110850.0,110830.0,0.91813649]
[1760543707477,0.20547638,110850.0,110840.0,0.73768114]
[1760543707680,0.02505239,110850.0,110840.0,0.91812141]
[1760543707892,0.02505239,110850.0,110840.0,1.00781153]
[1760543708109,0.01669623,110850.0,110840.0,1.00781153]
[1760543708313,0.02504246,110850.0,110840.0,1.00781153]
[1760543708513,0.19712022,110850.0,110840.0,1.00781113]
[1760543708779,0.19712022,110850.0,110840.0,0.82737126]
[1760543708980,0.18142399,110850.0,110840.0,1.00780995]
[1760543709187,0.001,110850.0,110840.0,1.00780995]
[1760543709587,0.18142399,110850.0,110840.0,0.74665086]
[1760543709766,0.18142399,110850.0,110840.0,0.56621217]
[1760543710035,0.001,110850.0,110840.0,0.27013039]
[1760543710321,0.001,110850.0,110840.0,0.74665244]
[1760543710729,0.001,110850.0,110840.0,1.22317449]
[1760543710935,0.18876216,110860.0,110850.0,0.18042399]
[1760543711146,0.0083449,110860.0,110850.0,0.65694604]
[1760543711353,1e-08,110870.0,110860.0,0.18040772]
[1760543711554,0.18039145,110870.0,110860.0,0.08969012]
[1760543711767,0.18873737,110870.0,110860.0,0.56621217]
[1760543711973,0.18873737,110870.0,110860.0,0.74661989]
[1760543712329,0.00834593,110870.0,110860.0,0.74561989]
[1760543712659,1e-08,110870.0,110860.0,1.0857697]
[1760543713688,0.009001,110870.0,110860.0,1.09484307]
[1760543713893,1e-08,110870.0,110860.0,1.09484307]
[1760543714091,0.00100001,110870.0,110860.0,1.09484307]
[1760543714500,1e-08,110870.0,110860.0,1.09484307]
[1760543714667,1e-08,110870.0,110860.0,1.6075474]
[1760543714854,0.00100001,110870.0,110860.0,1.24702535]
[1760543715318,1e-08,110870.0,110860.0,1.13102535]
[1760543715525,1e-08,110870.0,110860.0,1.24698535]
[1760543715725,0.19024679,110870.0,110860.0,0.08883993]
[1760543715967,0.18139145,110870.0,110860.0,0.56536198]
[1760543716196,0.18139145,110870.0,110860.0,0.7457697]
[1760543716405,0.18139145,110870.0,110860.0,0.56536198]
[1760543716611,0.00100001,110870.0,110860.0,1.0867697]
[1760543716814,0.0099811,110870.0,110860.0,1.13205159]
[1760543717018,0.00100001,110870.0,110860.0,1.13205159]
[1760543717647,1e-08,110870.0,110860.0,1.13205159]
[1760543717878,0.00100001,110870.0,110860.0,1.13205159]
[1760543718273,1e-08,110870.0,110860.0,1.13205159]